bitfinex-derivatives/quotes_ETHF0:USTF0_20250923
["timestamp","ask_amount","ask_price","bid_price","bid_amount"]
[1758642275062,0.4212,4183.2,4183.1,3.7668]
[1758642275264,0.7447,4183.2,4183.1,4.40811]
[1758642275562,1.259307,4183.2,4183.1,4.40811]
[1758642280060,1.259307,4183.2,4182.8,0.224]
[1758642280061,1.17473,4182.9,4182.8,0.224]
[1758642280260,0.7447,4182.8,4182.7,0.65405]
[1758642280458,1.259307,4182.8,4182.7,0.98905]
[1758642280661,1.259307,4182.8,4182.7,1.20035]
[1758642281061,1.689347,4182.8,4182.7,1.20035]
[1758642282665,1.689347,4182.8,4182.7,0.7703]
[1758642283067,1.689347,4182.8,4182.7,0.86535]
[1758642283568,1.689347,4182.8,4182.7,1.20035]
[1758642283767,1.689347,4182.8,4182.7,0.7703]
[1758642283964,1.689347,4182.8,4182.7,1.20035]
[1758642284165,1.689347,4182.8,4182.7,0.7703]
[1758642284468,1.689347,4182.8,4182.7,1.20035]
[1758642284970,1.689347,4182.8,4182.7,0.4353]
[1758642285368,1.689347,4182.8,4182.7,0.224]
[1758642285668,1.17475,4182.7,4182.6,3.2078]
[1758642285868,1.689357,4182.7,4182.6,3.4318]
[1758642286468,1.259307,4182.7,4182.6,4.40816]
[1758642286667,1.689357,4182.7,4182.6,4.40816]
[1758642286863,1.259307,4182.7,4182.6,4.40816]
[1758642287160,1.689357,4182.7,4182.6,4.40816]
[1758642291877,1.259307,4182.7,4182.6,4.40816]
[1758642293674,0.514607,4182.7,4182.6,4.40816]
[1758642293973,0.43001,4183.1,4183.0,1.29592]
[1758642294166,0.42999,4183.4,4183.2,0.427]
[1758642294469,0.88279,4183.4,4183.3,0.7398]
[1758642294670,1.39791355,4183.4,4183.3,0.7398]
[1758642294870,1.72091355,4183.4,4183.3,0.7398]
[1758642295069,1.29092355,4183.4,4183.3,1.16979]
[1758642295265,0.96792355,4183.4,4183.3,1.16979]
[1758642295471,1.39790355,4183.4,4183.3,1.16979]
[1758642295672,1.29092355,4183.4,4183.3,0.7398]
[1758642296069,1.72090355,4183.4,4183.3,0.7398]
[1758642296570,1.72090355,4183.4,4183.3,1.16979]
[1758642296872,1.72090355,4183.4,4182.8,1.07511]
[1758642296873,0.43002,4183.0,4182.9,0.7749]
[1758642297070,1.04692355,4183.0,4182.9,0.7749]
[1758642297274,1.25542355,4183.0,4182.9,1.16983]
[1758642297470,1.81424355,4183.0,4182.9,0.7398]
[1758642297673,0.84735,4182.7,4182.6,3.2078]
[1758642297971,1.68547355,4182.7,4182.6,3.4259]
[1758642298472,1.68547355,4182.7,4182.6,3.7387]
[1758642298975,1.68547355,4182.7,4182.6,3.9476]
[1758642299868,1.25542355,4182.7,4182.6,3.9476]
[1758642300063,1.25542355,4182.7,4182.6,4.37766]
[1758642300376,0.51512355,4182.7,4182.6,4.37766]
[1758642300579,0.567,4183.0,4182.9,1.16983]
[1758642300876,0.51348986,4183.0,4182.9,1.16983]
[1758642301968,1.04528986,4183.0,4182.9,1.16983]
[1758642302667,0.51348986,4183.0,4182.9,1.16983]
[1758642303073,0.51348986,4183.0,4182.9,1.41383]
[1758642304274,0.43004,4182.8,4182.6,3.2078]
[1758642304578,1.68409207,4182.7,4182.6,3.85596]
[1758642304967,1.68409207,4182.7,4182.6,4.16876]
[1758642304968,1.25404207,4182.7,4182.6,4.16876]
[1758642305673,1.25404207,4182.7,4182.6,4.37766]
[1758642306369,0.51374207,4182.7,4182.6,4.37766]
[1758642307073,3.88179,4183.4,4183.3,0.3128]
[1758642307074,3.6606,4183.4,4183.3,0.3128]
[1758642307268,3.93043654,4183.4,4183.3,1.16979]
[1758642307472,1.15261654,4183.4,4183.3,1.16979]
[1758642307676,0.72263654,4183.4,4183.3,1.16979]
[1758642307875,0.51383654,4183.4,4183.3,1.16979]
[1758642308382,1.20573,4184.0,4183.9,0.427]
[1758642308571,1.92776984,4184.0,4183.9,0.7398]
[1758642308772,2.05656984,4184.0,4183.9,0.7398]
[1758642309972,2.05656984,4184.0,4183.9,0.2181]
[1758642310172,1.17025,4183.7,4183.6,0.5309]
[1758642310377,1.68378984,4183.7,4183.6,0.5309]
[1758642311173,1.68378984,4183.7,4183.6,0.2181]
[1758642311374,1.25383984,4183.7,4183.6,0.739]
[1758642311981,0.72233984,4183.7,4183.6,0.739]
[1758642312284,0.51353984,4183.7,4183.6,0.739]
[1758642312583,1.70008984,4183.7,4183.6,0.739]
[1758642313290,1.18655,4183.7,4183.6,0.739]
[1758642313470,1.69956654,4183.7,4183.6,0.739]
[1758642314083,1.69956654,4183.7,4183.6,1.16896]
[1758642314280,1.26961654,4183.7,4183.6,1.16896]
[1758642314982,1.69956654,4183.7,4183.6,0.739]
[1758642316081,1.26961654,4183.7,4183.6,1.16896]
[1758642316884,1.69956654,4183.7,4183.6,1.16896]
[1758642317091,1.69956654,4183.7,4183.6,0.739]
[1758642317582,1.18658,4183.4,4183.3,0.2132]
[1758642317772,1.18658,4183.4,4182.5,0.1261]
[1758642317773,0.99222,4183.0,4182.9,0.2132]
[1758642317976,1.31002,4183.0,4182.9,0.2132]
[1758642318371,1.82305704,4183.0,4182.9,0.2132]
[1758642318571,0.7566,4182.8,4182.7,0.2132]
[1758642318772,1.18664,4182.8,4182.7,0.2132]
[1758642319185,1.18665,4182.7,4182.6,3.2078]
[1758642319387,1.69974419,4182.7,4182.6,3.2078]
[1758642319577,1.69974419,4182.7,4182.6,3.421]
[1758642320282,0.8689,4182.2,4182.1,3.7284]
[1758642320487,1.1867,4182.2,4182.1,3.9419]
[1758642320681,1.26978434,4182.2,4182.1,3.9419]
[1758642320990,0.73358434,4182.2,4182.1,4.37201]
[1758642321181,1.1867,4182.2,4182.1,3.9419]
[1758642321380,0.7566,4182.2,4182.1,3.9419]
[1758642321788,0.5382,4182.2,4182.1,3.9419]
[1758642322087,0.2204,4182.2,4182.1,3.9419]
[1758642322282,0.2204,4182.5,4182.4,0.5206]
[1758642322481,0.5382,4182.5,4182.4,0.7341]
[1758642322676,0.51300362,4182.5,4182.4,0.7341]
[1758642322881,0.2204,4182.8,4182.7,1.16415]
[1758642323084,0.73338259,4182.8,4182.7,1.16415]
[1758642323385,1.16342259,4182.8,4182.7,0.7341]
[1758642323684,1.48072259,4182.8,4182.7,0.7341]
[1758642323884,1.05068259,4182.8,4182.7,1.16415]
[1758642324789,1.48072259,4182.8,4182.7,0.7341]
[1758642325489,0.51298259,4182.8,4182.7,1.16415]
[1758642325683,0.5322,4183.3,4183.2,0.858]
[1758642325992,1.47504461,4183.3,4183.2,0.7359]
[1758642326187,1.04505461,4183.3,4183.2,1.1659]
[1758642327090,0.51285461,4183.3,4183.2,1.1659]
[1758642327289,1.20617,4183.6,4183.5,0.7359]
[1758642327488,1.7190033,4183.6,4183.5,0.7359]
[1758642327686,1.9422033,4183.6,4183.5,0.7359]
[1758642327886,1.6982033,4183.6,4183.5,0.7359]
[1758642330094,1.6982033,4183.6,4183.5,1.16587]
[1758642330494,1.6982033,4183.6,4183.5,0.7359]
[1758642331699,1.6982033,4183.6,4183.5,1.16587]
[1758642332698,1.6982033,4183.6,4183.5,0.7359]
[1758642332893,0.56227,4183.5,4183.4,0.64598]
[1758642333099,1.8305033,4183.5,4183.4,1.16588]
[1758642333599,1.8305033,4183.5,4183.4,0.7359]
[1758642333999,1.8305033,4183.5,4183.4,1.16588]
[1758642334797,1.8305033,4183.5,4183.4,0.7359]
[1758642335296,1.0450333,4183.5,4183.4,1.16588]
[1758642335503,0.5322,4184.0,4183.9,0.7359]
[1758642335701,1.26674506,4184.0,4183.9,0.7359]
[1758642336302,1.69666506,4184.0,4183.9,0.7359]
[1758642337606,1.26674506,4184.0,4183.9,1.16583]
[1758642338108,1.18528,4184.4,4184.3,0.216]
[1758642338407,1.18532,4184.0,4183.9,0.7359]
[1758642338604,1.18532,4184.0,4183.9,1.16583]
[1758642339102,0.7554,4184.0,4183.9,1.16583]
[1758642339506,1.18532,4184.0,4183.9,1.16583]
[1758642339706,1.18532,4184.0,4183.9,0.7359]
[1758642341606,0.86804,4183.8,4183.7,3.4238]
[1758642341808,1.18534,4183.8,4183.7,3.4238]
[1758642342208,1.69667619,4183.8,4183.7,3.2078]
[1758642342406,1.18544,4182.8,4182.7,0.7629]
[1758642342711,0.43005,4182.7,4182.6,3.2078]
[1758642342911,1.18545,4182.7,4182.6,3.2078]
[1758642343207,1.18545,4182.7,4182.5,0.243]
[1758642343404,0.43007,4182.5,4182.4,0.3079]
[1758642343604,0.7554,4182.2,4182.1,4.1867]
[1758642345305,0.2149,4182.2,4182.1,4.1867]
[1758642346212,0.43007,4182.6,4182.5,0.8585]
[1758642346407,0.43005,4182.8,4182.6,0.43006]
[1758642346611,0.43001,4183.2,4183.1,1.16591]
[1758642346809,0.96221,4183.2,4183.1,0.7359]
[1758642347020,1.18541,4183.2,4183.1,0.7359]
[1758642347213,1.18541,4183.2,4183.1,3.4238]
[1758642347421,0.86817,4182.6,4182.5,3.6358]
[1758642347722,0.43005,4182.8,4182.7,0.7359]
[1758642347912,0.2149,4183.0,4182.9,0.7359]
[1758642348417,0.7554,4183.0,4182.9,0.7359]
[1758642349713,0.43001,4183.2,4183.1,0.216]
[1758642349913,0.43001,4183.2,4183.1,3.9437]
[1758642350114,0.7554,4183.7,4183.6,0.7359]
[1758642350313,1.26677776,4183.7,4183.6,0.7359]
[1758642350514,1.69672776,4183.7,4183.6,0.7359]
[1758642350912,1.69672776,4183.7,4183.6,0.216]
[1758642351514,0.43,4183.2,4183.1,3.2078]
[1758642351720,1.1854,4183.2,4183.1,3.4238]
[1758642351917,0.1323,4183.5,4183.1,3.4238]
[1758642351918,0.5322,4183.4,4183.3,0.42999]
[1758642352122,1.26695026,4183.4,4183.3,1.16589]
[1758642352720,1.69693026,4183.4,4183.3,1.16589]
[1758642352917,1.1854,4183.2,4183.1,3.4238]
[1758642353114,1.1854,4183.2,4183.1,3.85381]
[1758642353319,0.7554,4183.2,4183.1,4.40771]
[1758642353811,0.97768,4183.5,4183.4,0.63628]
[1758642354016,1.4894228,4183.5,4183.4,1.19018]
[1758642354421,1.0594428,4183.5,4183.4,1.19018]
[1758642355117,4.41478,4184.5,4183.8,0.4249]
[1758642355118,0.42993,4183.9,4183.8,0.4249]
[1758642355324,0.64983,4183.9,4183.8,0.7602]
[1758642355527,0.64983,4183.9,4183.8,1.19014]
[1758642355528,1.05944952,4183.9,4183.8,1.19014]
[1758642355723,0.51174952,4183.9,4183.7,3.2078]
[1758642355917,1.71078952,4183.8,4183.7,3.2078]
[1758642356426,0.87129,4183.3,4183.2,3.4141]
[1758642356621,1.19909,4183.3,4183.2,3.4141]
[1758642357711,1.19909,4183.3,4183.2,3.2078]
[1758642358726,1.19909,4183.3,4182.7,0.5416]
[1758642358727,1.19914,4182.8,4182.7,0.5416]
[1758642359128,1.19914,4182.8,4182.7,1.19025]
[1758642359319,0.64994,4182.8,4182.7,0.43005]
[1758642359520,0.97774,4182.8,4182.7,0.7602]
[1758642359732,1.19914,4182.8,4182.7,0.2063]
[1758642360122,1.19914,4182.8,4182.7,0.7602]
[1758642360928,1.19915,4182.7,4182.6,3.2078]
[1758642361230,1.71128126,4182.7,4182.6,3.2078]
[1758642361928,1.28123126,4182.7,4182.6,4.39806]
[1758642362229,1.71128126,4182.7,4182.6,3.968]
[1758642362423,1.19915,4182.7,4182.6,3.968]
[1758642362731,1.71114153,4182.7,4182.6,3.968]
[1758642363229,1.19915,4182.7,4182.6,3.968]
[1758642364028,1.19915,4182.7,4182.6,3.6327]
[1758642364429,1.19915,4182.7,4182.6,3.4141]
[1758642364727,1.71103696,4182.7,4182.6,3.4141]
[1758642365525,1.28098696,4182.7,4182.6,3.968]
[1758642365726,1.71103696,4182.7,4182.6,3.968]
[1758642366728,1.71103696,4182.7,4182.6,3.4141]
[1758642367431,1.71103696,4182.7,4182.4,0.2063]
[1758642367432,1.32897,4182.5,4182.4,0.2063]
[1758642367631,1.32897,4182.5,4182.1,3.7494]
[1758642367632,0.65,4182.2,4182.1,3.7494]
[1758642367832,1.1992,4182.2,4182.1,3.7494]
[1758642368127,1.1992,4182.2,4182.1,3.968]
[1758642369133,0.7691,4182.2,4182.1,4.39811]
[1758642369328,1.1992,4182.2,4182.1,3.968]
[1758642369930,1.84438,4182.2,4181.8,0.3353]
[1758642370234,1.84438,4182.2,4181.6,3.2078]
[1758642370235,1.19926,4181.7,4181.6,3.968]
[1758642370830,0.65002,4182.1,4182.0,0.4249]
[1758642371031,1.73276464,4182.1,4182.0,0.7602]
[1758642371234,1.73276464,4182.1,4182.0,0.8924]
[1758642371431,1.73276464,4182.1,4182.0,0.7602]
[1758642371832,1.95006464,4182.1,4182.0,0.7602]
[1758642374631,1.95006464,4182.1,4182.0,0.4249]
[1758642374832,1.95006464,4182.1,4181.7,0.313]
[1758642374833,0.85415,4181.8,4181.7,0.5322]
[1758642375031,1.18835,4181.8,4181.7,0.7459]
[1758642375838,0.7582,4181.8,4181.7,1.17606]
[1758642376031,1.18835,4181.8,4181.7,1.17606]
[1758642376737,1.18835,4181.8,4181.7,4.38386]
[1758642377039,1.18835,4181.8,4181.7,3.9537]
[1758642377536,1.18835,4181.8,4181.7,4.38386]
[1758642378041,0.7582,4181.8,4181.7,4.38386]
[1758642378641,1.18834,4181.8,4181.7,4.38386]
[1758642379741,0.7582,4181.8,4181.7,4.38386]
[1758642380139,1.18834,4181.8,4181.7,4.38386]
[1758642380438,0.1298,4182.5,4181.7,4.38386]
[1758642380439,0.7582,4182.4,4182.3,0.7459]
[1758642380636,1.69957962,4182.4,4182.3,0.7459]
[1758642380938,0.63676,4182.6,4182.5,0.86297]
[1758642381237,0.71798651,4182.6,4182.5,1.17597]
[1758642381442,0.7582,4183.0,4182.9,1.17593]
[1758642381636,0.5409,4183.2,4183.1,0.7459]
[1758642381836,1.05215041,4183.2,4183.1,1.17591]
[1758642382239,0.63667,4183.5,4183.4,0.4329]
[1758642382438,0.71788046,4183.5,4183.4,0.7459]
[1758642382742,0.2067,4183.8,4183.7,1.17585]
[1758642382941,0.243,4183.9,4183.7,1.17585]
[1758642383143,0.243,4183.9,4183.8,0.7142]
[1758642383944,0.243,4183.9,4183.8,3.922]
[1758642384947,0.5452,4184.4,4184.3,0.7142]
[1758642386843,0.2092,4184.6,4184.5,1.14406]
[1758642387046,0.42985,4184.7,4184.5,0.8448]
[1758642387252,0.97505,4184.7,4184.6,0.7142]
[1758642387444,1.18395,4184.7,4184.6,0.7142]
[1758642388643,1.18398,4184.4,4184.3,3.6169]
[1758642389046,1.18398,4184.4,4184.3,3.922]
[1758642389348,0.42993,4183.9,4183.8,0.7142]
[1758642389559,1.18403,4183.9,4183.8,0.7142]
[1758642390750,0.7541,4183.9,4183.8,0.7142]
[1758642391339,0.336,4184.2,4184.0,0.42991]
[1758642391541,0.243,4184.4,4184.0,0.42991]
[1758642391542,0.5452,4184.5,4184.4,0.7142]
[1758642391750,0.889,4184.5,4184.4,0.7142]
[1758642391952,1.31886,4184.5,4184.4,0.7142]
[1758642392351,1.31886,4184.5,4184.4,0.4091]
[1758642392541,0.7541,4184.5,4184.4,0.7142]
[1758642392748,1.18396,4184.5,4184.4,0.7142]
[1758642393152,0.7541,4184.5,4184.4,1.14407]
[1758642393356,0.63906,4184.5,4184.4,0.7142]
[1758642393656,1.31886,4184.5,4184.4,0.7142]
[1758642393847,1.31886,4184.5,4184.4,0.4091]
[1758642394158,1.31886,4184.5,4184.4,0.7142]
[1758642395552,0.42988,4184.3,4184.2,3.2078]
[1758642395749,0.42988,4184.3,4184.2,3.4124]
[1758642395750,1.18398,4184.3,4184.2,3.4124]
[1758642396650,1.18398,4184.3,4184.2,4.14739]
[1758642396854,0.2092,4184.3,4184.2,4.35189]
[1758642397043,0.2092,4184.5,4184.4,0.83897]
[1758642397246,0.5452,4184.5,4184.4,1.14407]
[1758642397447,1.42694,4184.8,4184.7,0.4091]
[1758642397647,1.42694,4184.8,4184.7,0.7142]
[1758642400060,0.7541,4185.2,4185.1,0.4091]
[1758642400358,1.18389,4185.2,4185.1,0.7142]
[1758642401055,1.18393,4184.8,4184.7,3.7175]
[1758642401254,0.97503,4184.8,4184.7,4.35184]
[1758642401652,0.97503,4184.8,4184.7,3.922]
[1758642401846,1.18393,4184.8,4184.7,3.6169]
[1758642402247,0.7541,4184.8,4184.7,3.922]
[1758642402443,1.18393,4184.8,4184.7,3.922]
[1758642403457,1.18393,4184.8,4184.7,3.6169]
[1758642403755,1.18393,4184.8,4184.7,3.4124]
[1758642404860,1.18393,4184.8,4184.7,3.922]
[1758642405154,1.18394,4184.8,4184.7,3.922]
[1758642407952,1.18394,4184.8,4184.7,0.2046]
[1758642408165,1.31887,4184.5,4184.4,0.5097]
[1758642408558,1.31887,4184.5,4184.4,0.7142]
[1758642409153,1.31887,4184.5,4184.4,0.5097]
[1758642409358,1.31887,4184.5,4184.4,0.2046]
[1758642409761,0.7541,4184.5,4184.4,0.7142]
[1758642410159,1.26539858,4184.5,4184.4,1.14408]
[1758642410359,0.7541,4184.5,4184.4,1.14408]
[1758642410758,0.5452,4184.5,4184.4,1.14408]
[1758642410960,1.21805,4184.7,4184.6,0.7142]
[1758642411161,1.29946167,4184.7,4184.6,1.14406]
[1758642411462,0.51126167,4184.7,4184.6,1.14406]
[1758642412058,1.48631167,4184.7,4184.6,0.7142]
[1758642412262,1.48631167,4184.7,4184.6,1.14406]
[1758642412867,1.05646167,4184.7,4184.6,1.14406]
[1758642415683,1.48631167,4184.7,4184.6,0.7142]
[1758642416171,1.05646167,4184.7,4184.6,1.14406]
[1758642417667,1.48631167,4184.7,4184.6,1.14406]
[1758642417868,1.05646167,4184.7,4184.6,1.14406]
[1758642419468,1.70981167,4184.7,4184.6,0.7142]
[1758642420170,1.27996167,4184.7,4184.6,1.14406]
[1758642420570,1.70981167,4184.7,4184.6,0.7142]
[1758642421368,1.70981167,4184.7,4184.6,1.14406]
[1758642421968,1.70981167,4184.7,4184.6,0.7142]
[1758642422357,1.70981167,4184.7,4184.6,1.14406]
[1758642423473,1.70981167,4184.7,4184.6,0.7142]
[1758642424178,1.71083239,4184.7,4184.6,1.14406]
[1758642425669,1.71083239,4184.7,4184.6,0.7142]
[1758642425870,1.20041,4184.5,4184.0,3.2078]
[1758642426076,1.19201,4184.1,4184.0,3.4234]
[1758642426277,1.70429239,4184.1,4184.0,3.4234]
[1758642426575,1.70429239,4184.1,4184.0,3.85332]
[1758642427276,1.70429239,4184.1,4184.0,4.18582]
[1758642427769,1.70429239,4184.1,4184.0,3.7559]
[1758642427965,1.27438239,4184.1,4184.0,4.18582]
[1758642428170,1.27438239,4184.1,4184.0,4.40182]
[1758642428580,1.70429239,4184.1,4184.0,4.40182]
[1758642428778,1.70429239,4184.1,4184.0,3.9719]
[1758642430782,1.70429239,4184.1,4184.0,3.2078]
[1758642430783,1.94729239,4184.1,4184.0,3.2078]
[1758642431281,1.94729239,4184.1,4184.0,3.4234]
[1758642431874,0.96678239,4184.1,4184.0,4.53462]
[1758642432270,1.27718239,4184.1,4184.0,4.53462]
[1758642432777,0.51228239,4184.1,4184.0,5.01662]
[1758642432966,3.2078,4185.1,4184.9,0.7586]
[1758642433167,0.3104,4185.3,4185.0,0.99002]
[1758642433374,1.47171625,4185.2,4185.1,0.7586]
[1758642433582,1.04191625,4185.2,4185.1,0.7586]
[1758642433881,1.47171625,4185.2,4185.1,0.7586]
[1758642434178,1.68931625,4185.2,4185.1,0.2115]
[1758642434479,1.68931625,4185.2,4185.1,0.5441]
[1758642434678,1.68931625,4185.2,4185.1,0.7586]
[1758642434882,1.25951625,4185.2,4185.1,0.7586]
[1758642435076,0.73151625,4185.2,4185.1,0.7586]
[1758642435269,1.04191625,4185.2,4185.1,1.18841]
[1758642435471,0.51201625,4185.2,4185.1,1.18841]
[1758642436076,0.243,4185.5,4185.4,0.42978]
[1758642436282,0.243,4185.5,4185.4,1.18838]
[1758642436480,0.75475253,4185.5,4185.4,1.18838]
[1758642436875,0.51175253,4185.5,4185.4,1.18838]
[1758642437078,0.74013,4185.9,4185.4,1.18838]
[1758642437079,0.3104,4185.9,4185.4,1.18838]
[1758642437278,0.1284,4186.5,4185.3,0.243]
[1758642437279,1.17718,4186.4,4186.3,0.5441]
[1758642437583,1.93131404,4186.4,4186.3,0.7586]
[1758642438185,0.51113404,4186.4,4186.3,0.7586]
[1758642438374,2.15883017,4187.0,4186.8,0.3326]
[1758642438587,2.15883017,4187.0,4186.9,0.7586]
[1758642438787,0.97310888,4187.0,4186.9,0.7586]
[1758642439080,0.97310888,4187.0,4186.9,0.426]
[1758642439081,1.62950888,4187.0,4186.9,0.426]
[1758642439285,0.86675,4186.7,4186.6,0.5441]
[1758642439487,1.17715,4186.7,4186.6,0.2115]
[1758642440087,1.17715,4186.7,4185.0,1.84971737]
[1758642440088,1.17722,4186.0,4185.9,0.5441]
[1758642440384,1.30562,4186.0,4185.9,0.2115]
[1758642440584,0.8759,4186.0,4185.9,0.7586]
[1758642441177,0.1284,4186.5,4185.9,0.7586]
[1758642441381,0.64919,4186.3,4186.2,0.7586]
[1758642441582,0.7475,4186.8,4186.7,0.426]
[1758642441797,1.25728029,4186.8,4186.7,0.7586]
[1758642441980,1.68692029,4186.8,4186.7,0.7586]
[1758642442180,0.64912,4187.0,4186.9,0.2115]
[1758642442388,0.2195,4187.0,4186.9,0.7586]
[1758642442789,0.5299,4187.0,4186.9,0.7586]
[1758642442990,0.7475,4187.0,4186.9,0.7586]
[1758642443580,0.2195,4187.0,4186.9,0.7586]
[1758642443786,0.42961,4187.1,4187.0,0.3308]
[1758642443982,0.96391,4187.1,4187.0,0.7585]
[1758642444383,1.18191,4187.1,4187.0,0.7585]
[1758642444689,0.8865,4187.0,4186.9,3.2078]
[1758642445687,0.76073,4186.9,4186.8,0.2121]
[1758642445982,1.18193,4186.9,4186.8,0.2121]
[1758642446585,1.18196,4186.6,4186.5,0.5429]
[1758642446978,0.7523,4186.6,4186.5,0.7585]
[1758642448381,0.7523,4186.6,4186.5,0.4277]
[1758642448584,0.7523,4186.6,4186.5,0.7585]
[1758642449191,0.7523,4186.6,4186.5,3.9663]
[1758642449192,0.2032,4186.6,4186.5,3.9663]
[1758642449393,0.5343,4186.9,4186.8,0.7585]
[1758642449592,0.42961,4187.0,4186.9,0.7585]
[1758642449593,0.2032,4187.0,4186.9,0.7585]
[1758642449795,0.7523,4187.0,4186.9,0.7585]
[1758642450696,1.18191,4187.0,4186.9,0.7585]
[1758642451690,1.31611,4187.0,4186.9,0.4277]
[1758642451992,1.31611,4187.0,4186.5,3.4199]
[1758642451993,1.18195,4186.6,4186.5,3.4199]
[1758642452193,1.18195,4186.6,4186.5,3.7507]
[1758642452496,1.18195,4186.6,4186.5,3.9663]
[1758642454092,1.42495,4186.6,4186.5,3.2078]
[1758642455097,0.85089,4186.2,4186.1,0.4277]
[1758642455299,1.18199,4186.2,4186.1,0.7585]
[1758642455895,1.18199,4186.2,4186.1,0.2121]
[1758642456100,1.20837,4186.5,4186.0,3.2078]
[1758642456101,0.7608,4186.1,4186.0,3.2078]
[1758642456301,1.182,4186.1,4186.0,3.4199]
[1758642456500,1.182,4186.1,4186.0,0.2121]
[1758642456899,1.182,4186.1,4185.7,0.3308]
[1758642457201,1.18203,4185.8,4185.7,0.2121]
[1758642457597,1.18203,4185.8,4185.7,0.7585]
[1758642458497,1.18203,4185.8,4185.7,0.4277]
[1758642458802,1.18203,4185.8,4185.7,0.2121]
[1758642459192,0.85095,4185.6,4185.5,3.4199]
[1758642459396,1.18205,4185.6,4185.5,3.4199]
[1758642459701,1.18205,4185.6,4185.5,3.9663]
[1758642461300,0.63295,4185.6,4185.5,4.0993]
[1758642461708,0.2032,4185.6,4185.5,4.0993]
[1758642461900,0.63295,4185.6,4185.5,4.0993]
[1758642462306,0.63295,4185.6,4185.5,4.52907]
[1758642462602,0.63295,4185.6,4185.5,4.0993]
[1758642462906,1.69162186,4185.6,4185.5,3.9663]
[1758642463604,1.69162186,4185.6,4185.5,0.2121]
[1758642463810,1.18211,4185.1,4185.0,0.7585]
[1758642464002,1.20864,4185.5,4185.0,1.32132]
[1758642464003,0.4298,4185.2,4185.0,1.32132]
[1758642464205,0.633,4185.2,4185.1,0.7585]
[1758642464606,0.9641,4185.2,4185.1,0.7585]
[1758642464806,1.1821,4185.2,4185.1,0.7585]
[1758642465003,0.7523,4185.2,4185.1,0.7585]
[1758642465307,0.7523,4185.2,4185.1,1.18831]
[1758642465510,0.42978,4185.4,4185.3,0.7585]
[1758642465808,0.96408,4185.4,4185.3,3.9663]
[1758642466002,0.67276,4185.6,4185.3,4.06529]
[1758642466209,1.20839,4186.5,4185.3,4.06529]
[1758642466210,3.63749,4186.3,4186.2,0.7585]
[1758642466410,4.14727887,4186.3,4186.2,0.7585]
[1758642466607,4.68157887,4186.3,4186.2,0.7585]
[1758642466806,4.89957887,4186.3,4186.2,0.7585]
[1758642467007,1.69177887,4186.3,4186.2,0.7585]
[1758642467204,1.18199,4186.3,4186.2,0.7585]
[1758642467799,0.7523,4186.3,4186.2,0.7585]
[1758642468100,3.2078,4186.8,4186.7,0.7585]
[1758642468101,4.38973,4186.8,4186.7,0.7585]
[1758642468303,0.50972162,4186.8,4186.7,0.7585]
[1758642468711,0.93935162,4186.8,4186.7,0.7585]
[1758642468909,1.14255162,4186.8,4186.7,0.7585]
[1758642469104,1.69165162,4186.8,4186.7,0.2121]
[1758642469914,1.69165162,4186.8,4186.7,0.7585]
[1758642470914,1.69165162,4186.8,4186.7,0.4277]
[1758642471413,1.31616,4186.5,4186.4,3.2078]
[1758642472707,1.31616,4186.5,4186.4,3.9663]
[1758642472908,0.2032,4186.1,4186.0,0.4277]
[1758642473212,1.31861,4186.0,4185.9,3.2078]
[1758642473608,1.31861,4186.0,4185.4,0.67278]
[1758642473609,1.31867,4185.5,4185.4,3.2078]
[1758642474007,1.82861099,4185.5,4185.4,3.2078]
[1758642475406,1.82861099,4185.5,4185.4,3.9377]
[1758642475715,1.69921099,4185.5,4185.4,3.9377]
[1758642476414,1.18927,4185.5,4185.4,3.9377]
[1758642478708,1.82872431,4185.5,4185.4,0.4151]
[1758642479817,0.8597,4185.2,4185.1,0.5258]
[1758642480110,1.1893,4185.2,4185.1,0.7299]
[1758642481011,0.217,4184.8,4184.7,0.3148]
[1758642481216,1.43234,4184.8,4184.7,0.211]
[1758642481617,1.43234,4184.8,4184.7,0.7299]
[1758642481916,1.43234,4184.8,4184.7,0.211]
[1758642482514,1.31877,4184.5,4184.4,3.4188]
[1758642483220,1.18937,4184.5,4184.4,3.9377]
[1758642484320,0.7595,4184.5,4184.4,3.9377]
[1758642484618,1.18937,4184.5,4184.4,3.9377]
[1758642485114,1.31877,4184.5,4184.4,3.4188]
[1758642485319,1.31877,4184.5,4184.4,3.2078]
[1758642485622,1.31877,4184.5,4184.4,3.4188]
[1758642487018,1.31877,4184.5,4184.4,3.9377]
[1758642488315,1.07454,4185.1,4184.8,0.4151]
[1758642488316,0.97233,4184.9,4184.8,0.4151]
[1758642488518,1.72505147,4184.9,4184.8,0.7299]
[1758642488717,1.39545147,4184.9,4184.8,0.7299]
[1758642488920,3.2078,4185.2,4185.1,1.15971]
[1758642489118,0.64265,4185.6,4185.5,0.8615]
[1758642489320,1.69889205,4185.6,4185.5,0.7299]
[1758642489824,0.8597,4185.2,4185.1,0.7299]
[1758642490013,1.1893,4185.2,4185.1,0.7299]
[1758642490219,1.1893,4185.2,4185.1,0.4151]
[1758642490418,1.31872,4185.0,4184.9,3.4188]
[1758642490726,1.82838408,4185.0,4184.9,3.2078]
[1758642491921,1.32787,4184.5,4184.4,3.4106]
[1758642492116,1.57087,4184.5,4184.4,3.2078]
[1758642492517,1.19973,4183.9,4183.8,0.7317]
[1758642492720,4.40753,4183.9,4183.8,0.7317]
[1758642492920,4.91726079,4183.9,4183.8,0.7317]
[1758642493123,4.91726079,4183.9,4183.8,0.4093]
[1758642493924,4.91726079,4183.9,4183.8,0.7317]
[1758642494236,4.07083,4183.9,4183.8,0.7317]